bitfinex-derivatives/quotes_BNBF0:USTF0_20250401
["timestamp","ask_amount","ask_price","bid_price","bid_amount"]
[1743547605954,0.28425799,612.51,611.67,1.20745427]
[1743547606251,0.28425799,612.51,611.68,0.80706862]
[1743547606450,0.28425799,612.51,611.69,0.80706862]
[1743547606952,0.67,612.5,611.67,1.20745427]
[1743547607355,0.67,612.5,611.68,0.80676788]
[1743547607546,0.67,612.5,611.67,1.20745427]
[1743547607748,0.67,612.5,611.68,0.80681829]
[1743547608254,0.67,612.5,611.6,1.20745427]
[1743547608447,0.28433347,612.49,611.6,1.20745427]
[1743547608651,0.28433347,612.49,611.61,0.80677312]
[1743547608851,0.28433347,612.49,611.62,0.80677312]
[1743547609051,0.28433347,612.49,611.63,0.80677312]
[1743547609253,0.28433347,612.49,611.64,0.80677312]
[1743547609447,0.28433347,612.49,611.65,0.80677312]
[1743547609652,0.28433347,612.49,611.66,0.80677312]
[1743547609854,0.28433347,612.49,611.67,0.80677312]
[1743547610054,0.28433347,612.49,611.68,0.80677312]
[1743547610351,0.28433347,612.49,611.69,0.80677312]
[1743547610652,0.28433347,612.49,611.7,0.80677312]
[1743547610854,0.28433347,612.49,611.71,0.80677312]
[1743547611156,0.67,612.5,611.72,0.80677312]
[1743547611357,0.28432999,612.48,611.73,0.80677312]
[1743547611552,0.28432999,612.48,611.74,0.80648992]
[1743547611753,0.28432999,612.48,611.75,0.80648992]
[1743547611959,0.28432999,612.48,611.76,0.80648992]
[1743547612159,0.28432999,612.48,611.77,0.80648992]
[1743547612470,0.28432999,612.48,611.78,0.80648992]
[1743547612756,0.28432999,612.48,611.79,0.80648992]
[1743547612954,0.28432999,612.48,611.8,0.80648992]
[1743547613156,0.28432999,612.48,611.81,0.80648992]
[1743547613458,0.28432999,612.48,611.82,0.80648992]
[1743547613654,0.28432999,612.48,611.83,0.80648992]
[1743547613859,0.28432999,612.48,611.84,0.80648992]
[1743547614078,0.30031344,612.47,611.85,0.80648992]
[1743547614283,0.30031344,612.46,611.86,0.80648992]
[1743547614472,0.28431489,612.47,611.87,0.80648992]
[1743547614668,0.30031344,612.46,611.88,0.80648992]
[1743547614865,0.30031344,612.46,611.89,0.80648992]
[1743547615064,0.30031344,612.46,611.9,0.80648992]
[1743547615263,0.30031344,612.46,611.91,0.80648992]
[1743547615559,0.30031344,612.46,611.92,0.80648992]
[1743547615758,0.30031344,612.46,611.93,0.80648992]
[1743547615954,0.30031344,612.46,611.94,0.80648992]
[1743547616159,0.30031344,612.46,611.95,0.80648992]
[1743547616359,0.30031344,612.46,611.96,0.80648992]
[1743547616658,0.30031344,612.46,611.72,1.20745427]
[1743547616659,0.30033587,612.45,611.97,0.80648992]
[1743547616853,0.579,612.45,611.98,0.80648992]
[1743547617058,0.579,612.45,611.72,1.20745427]
[1743547617059,0.30033587,612.44,611.99,0.80648992]
[1743547617255,0.30033398,612.43,612.0,0.80648992]
[1743547617461,0.30033398,612.42,612.01,0.80648992]
[1743547617660,0.30033398,612.42,611.18,1.45944999]
[1743547617661,0.30033398,612.43,612.02,0.80648992]
[1743547617855,0.30033398,612.42,612.03,0.80648992]
[1743547618055,0.28430443,612.44,611.65,1.20745427]
[1743547618056,0.30033398,612.43,612.04,0.80648992]
[1743547618360,0.30033398,612.43,612.05,0.80648992]
[1743547618561,0.30033398,612.43,612.06,0.80648992]
[1743547618761,0.30033398,612.43,612.07,0.80648992]
[1743547619060,0.30033528,612.42,612.08,0.80648992]
[1743547619360,0.30033528,612.41,612.09,0.80648992]
[1743547619558,0.30033528,612.43,612.1,0.80648992]
[1743547619758,0.28430443,612.44,612.11,0.80648992]
[1743547619953,0.28430443,612.44,611.65,1.20745427]
[1743547619954,0.30033528,612.43,612.12,0.80648992]
[1743547620163,0.30033528,612.43,612.13,0.80648992]
[1743547620359,0.30033528,612.43,612.14,0.80648992]
[1743547620360,0.30033528,612.42,612.14,0.80648992]
[1743547620561,0.28428934,612.43,612.15,0.80648992]
[1743547620765,0.28428934,612.43,612.16,0.80648992]
[1743547620965,0.28428934,612.43,612.17,0.80648992]
[1743547621163,0.28428934,612.43,612.18,0.80648992]
[1743547621361,0.28428934,612.43,612.19,0.80648992]
[1743547621566,0.3003766,612.42,612.2,0.80648992]
[1743547621762,0.3003766,612.42,612.21,0.80648992]
[1743547621962,0.3003766,612.42,612.22,0.80648992]
[1743547622161,0.3003766,612.42,611.67,1.20745427]
[1743547622366,0.3003766,612.42,611.68,0.80818223]
[1743547622565,0.3003766,612.42,611.67,1.20745427]
[1743547622566,0.3003766,612.42,611.69,0.80818223]
[1743547622768,0.3003766,612.42,611.7,0.80818223]
[1743547623067,0.3003766,612.42,611.71,0.80818223]
[1743547623362,0.58478327,612.41,611.72,0.80818223]
[1743547623669,0.3003766,612.4,611.73,0.80818223]
[1743547623867,0.3003766,612.4,611.74,0.80818223]
[1743547624064,0.3003766,612.4,611.54,1.20745427]
[1743547624065,0.3003766,612.4,611.75,0.80818223]
[1743547624265,0.3003766,612.4,611.76,0.80818223]
[1743547624462,0.3003766,612.4,611.77,0.80818223]
[1743547624768,0.3003766,612.4,611.54,1.20745427]
[1743547624966,0.3003766,612.4,611.55,0.80799018]
[1743547625162,0.3003766,612.4,611.56,0.80799018]
[1743547625370,0.3003766,612.4,611.57,0.80799018]
[1743547625569,0.3003766,612.4,611.58,0.80799018]
[1743547625769,0.3003766,612.4,611.59,0.80799018]
[1743547626065,0.3003766,612.4,611.6,0.80799018]
[1743547626266,0.58477978,612.39,611.61,0.80799018]
[1743547626469,0.3003766,612.38,611.62,0.80799018]
[1743547626668,0.3003766,612.38,611.63,0.80799018]
[1743547626870,0.3003766,612.38,611.64,0.80799018]
[1743547627071,0.3003766,612.38,611.65,0.80799018]
[1743547627266,0.3003766,612.38,611.66,0.80799018]
[1743547627464,0.3003766,612.38,611.67,0.80799018]
[1743547627666,0.3003766,612.38,611.68,0.80799018]
[1743547627869,0.3003766,612.38,611.69,0.80799018]
[1743547628171,0.3003766,612.38,611.7,0.80799018]
[1743547628367,0.3003766,612.38,611.71,0.80799018]
[1743547628573,0.30042939,612.37,611.72,0.80799018]
[1743547628769,0.30042939,612.38,611.73,0.80799018]
[1743547628969,0.30042939,612.37,611.74,0.80799018]
[1743547629170,0.30042939,612.36,611.75,0.80799018]
[1743547629366,0.30042939,612.44,611.76,0.80799018]
[1743547629573,0.2843811,612.36,611.77,0.80799018]
[1743547629772,0.30042939,612.35,611.78,0.80799018]
[1743547629973,0.30042939,612.44,611.79,0.80799018]
[1743547630174,0.28437994,612.35,611.8,0.80799018]
[1743547630370,0.30042939,612.34,611.81,0.80799018]
[1743547630571,0.30042939,612.44,611.82,0.80799018]
[1743547630770,0.28437529,612.34,611.83,0.80799018]
[1743547630970,0.30042939,612.33,611.84,0.80799018]
[1743547631175,0.30042939,612.32,611.85,0.80799018]
[1743547631472,0.30042939,612.31,611.86,0.80799018]
[1743547631671,0.30042939,612.32,611.87,0.80799018]
[1743547631876,0.30042939,612.31,611.88,0.80799018]
[1743547632076,0.30042939,612.32,611.89,0.80799018]
[1743547632271,0.30042939,612.31,611.9,0.80799018]
[1743547632478,0.58480817,612.3,611.91,0.80799018]
[1743547632780,0.30042939,612.29,611.92,0.80799018]
[1743547632974,0.30042939,612.29,611.93,0.80799018]
[1743547633176,0.30042939,612.29,611.94,0.80799018]
[1743547633377,0.30042992,612.28,611.95,0.80799018]
[1743547633573,0.30042992,612.29,611.96,0.80799018]
[1743547633777,0.30042992,612.28,611.97,0.80799018]
[1743547633976,0.30042992,612.27,611.98,0.80799018]
[1743547634178,0.30042992,612.26,611.99,0.80799018]
[1743547634380,0.30042992,612.25,612.0,0.80799018]
[1743547634574,0.30042992,612.25,611.39,1.20745427]
[1743547634575,0.30042992,612.29,612.01,0.80799018]
[1743547634779,0.30042992,612.28,612.02,0.80799018]
[1743547634980,0.30042992,612.29,612.03,0.80799018]
[1743547635181,0.30042992,612.28,612.04,0.80799018]
[1743547635380,0.28434741,612.28,612.05,0.80799018]
[1743547635581,0.30042992,612.27,612.06,0.80799018]
[1743547635785,0.30042992,612.27,612.07,0.80799018]
[1743547635978,0.30042992,612.27,612.08,0.80799018]
[1743547636183,0.30042992,612.27,612.09,0.80799018]
[1743547636384,0.30042992,612.27,612.1,0.80799018]
[1743547636685,0.30042992,612.27,611.4,1.20745427]
[1743547636686,0.30045119,612.26,612.11,0.80798737]
[1743547636879,0.30045119,612.25,611.4,1.20745427]
[1743547637083,0.30045119,612.24,611.41,0.80799141]
[1743547637385,0.30045119,612.23,611.42,0.80799141]
[1743547637579,0.30045119,612.27,611.43,0.80799141]
[1743547637780,0.30045119,612.22,611.44,0.80799141]
[1743547637981,0.30045119,612.21,611.45,0.80799141]
[1743547638283,0.30045119,612.2,611.46,0.80799141]
[1743547638484,0.30045119,612.19,611.47,0.80799141]
[1743547638685,0.30045119,612.27,611.48,0.80799141]
[1743547638882,0.30045119,612.26,611.49,0.80799141]
[1743547639081,0.30045119,612.26,611.5,0.80799141]
[1743547639082,0.73,612.26,611.5,0.80799141]
[1743547639387,0.30045119,612.25,611.51,0.80799141]
[1743547639582,0.30045119,612.25,611.52,0.80799141]
[1743547639788,0.30045758,612.24,611.53,0.80799141]
[1743547639983,0.30045758,612.23,611.54,0.80799141]
[1743547640191,0.30045758,612.25,611.55,0.80799141]
[1743547640488,0.30045758,612.24,611.56,0.80799141]
[1743547640789,0.30045758,612.23,611.57,0.80799141]
[1743547640989,0.30045758,612.25,611.58,0.80799141]
[1743547641186,0.30045758,612.24,611.59,0.80787352]
[1743547641487,0.28444851,612.22,611.6,0.80787352]
[1743547641688,0.30045758,612.21,611.61,0.80787352]
[1743547641883,0.30045758,612.21,611.62,0.80787352]
[1743547642085,0.30045758,612.21,611.32,1.20745427]
[1743547642086,0.30045758,612.21,611.63,0.80787352]
[1743547642287,0.30045758,612.21,611.64,0.80787352]
[1743547642486,0.30045758,612.21,611.65,0.80787352]
[1743547642686,0.30045758,612.21,611.66,0.80787352]
[1743547642889,0.30045758,612.21,611.67,0.80787352]
[1743547643189,0.30045758,612.21,611.68,0.80787352]
[1743547643385,0.30045758,612.21,611.69,0.80787352]
[1743547643591,0.30045758,612.21,611.7,0.80787352]
[1743547643789,0.30045758,612.21,611.71,0.80787352]
[1743547643985,0.30045758,612.21,611.72,0.80787352]
[1743547644189,0.30045758,612.2,611.73,0.80787352]
[1743547644486,0.30045758,612.19,611.74,0.80787352]
[1743547644690,0.30045758,612.19,611.75,0.80787352]
[1743547644989,0.30045758,612.19,611.76,0.80787352]
[1743547645185,0.30045758,612.19,611.77,0.80751769]
[1743547645387,0.30045758,612.19,611.78,0.80751769]
[1743547645583,0.30045758,612.19,611.79,0.80751769]
[1743547645787,0.30045758,612.19,611.8,0.80751769]
[1743547645992,0.30045758,612.19,611.81,0.80751769]
[1743547646189,0.30045758,612.19,611.08,1.5434977]
[1743547646190,0.30045758,612.19,611.82,0.80751769]
[1743547646388,0.30045758,612.19,611.83,0.80751769]
[1743547646586,0.30045758,612.19,611.84,0.80751769]
[1743547646787,0.30045758,612.19,611.12,1.20745427]
[1743547646788,0.30045758,612.19,611.85,0.80751769]
[1743547647090,0.30045758,612.19,611.86,0.80751769]
[1743547647289,0.30045758,612.19,611.87,0.80751769]
[1743547647490,0.30045758,612.19,611.12,1.20745427]
[1743547647692,0.30045758,612.19,611.08,0.32728938]
[1743547647693,0.30045758,612.19,611.13,0.80681353]
[1743547647891,0.30053804,612.18,611.14,0.80681353]
[1743547648186,0.30053804,612.17,611.15,0.80681353]
[1743547648392,0.30053804,612.16,611.16,0.80681353]
[1743547648693,0.30053804,612.15,611.17,0.80681353]
[1743547648991,0.30053804,612.14,611.18,0.80681353]
[1743547649186,0.30053804,612.19,611.19,0.80624632]
[1743547649384,0.30053804,612.18,611.2,0.80624632]
[1743547649588,0.28446711,612.2,611.21,0.80624632]
[1743547649785,0.30053316,612.19,611.22,0.80624632]
[1743547649987,0.30053316,612.19,611.23,0.80624632]
[1743547650190,0.30053316,612.19,611.08,1.53474365]
[1743547650191,0.30053316,612.19,611.24,0.80624632]
[1743547650390,0.30053316,612.18,611.25,0.80624632]
[1743547650588,0.30053316,612.17,611.26,0.80596352]
[1743547650787,0.30053316,612.17,611.27,0.80596352]
[1743547650993,0.30053316,612.17,611.28,0.80596352]
[1743547651192,0.30053316,612.17,611.08,1.53474365]
[1743547651393,0.30053316,612.17,611.09,0.80563645]
[1743547651593,0.30053316,612.17,611.1,1.13291512]
[1743547651795,0.30053316,612.17,611.11,1.13290977]
[1743547652095,0.30053316,612.17,611.12,1.13290441]
[1743547652293,0.30053316,612.17,611.13,1.13289906]
[1743547652493,0.30053316,612.17,611.14,1.1328937]
[1743547652688,0.30053316,612.17,611.15,1.13288835]
[1743547652888,0.30053316,612.17,611.16,1.13288299]
[1743547653092,0.30053316,612.17,611.17,0.80563645]
[1743547653392,0.579,612.45,611.18,0.80563645]
[1743547653393,0.30053316,612.16,611.18,0.80563645]
[1743547653594,0.30053316,612.16,611.19,0.80563645]
[1743547653595,0.28451479,612.16,611.19,0.80563645]
[1743547653794,0.30053316,612.15,611.2,0.80563645]
[1743547653994,0.30053316,612.15,611.21,0.80563645]
[1743547654197,0.30053316,612.15,611.22,0.80563645]
[1743547654395,0.30053316,612.15,611.23,0.80563645]
[1743547654593,0.30053316,612.15,611.25,1.20745427]
[1743547654797,0.30053316,612.15,611.26,0.8052745]
[1743547654995,0.30053316,612.15,611.27,0.8052745]
[1743547655189,0.627,612.14,611.28,0.8052745]
[1743547655393,0.30053316,612.13,611.29,0.8052745]
[1743547655595,0.30053316,612.13,611.25,1.20745427]
[1743547655596,0.30053316,612.13,611.3,0.8052745]
[1743547655896,0.30053316,612.13,611.31,0.8052745]
[1743547656102,0.30053316,612.13,611.32,0.8052745]
[1743547656299,0.284502,612.12,611.33,0.8052745]
[1743547656596,0.30053316,612.11,611.34,2.01272877]
[1743547656896,0.30053316,612.11,611.35,0.8052745]
[1743547657096,0.30053316,612.11,611.36,0.8052745]
[1743547657292,0.30053316,612.11,611.37,0.8052745]
[1743547657498,0.30053316,612.11,611.38,0.8052745]
[1743547657694,0.30053316,612.11,611.39,0.8052745]
[1743547657894,0.30053316,612.11,611.4,0.8052745]
[1743547658196,0.30053316,612.11,611.41,0.8052745]
[1743547658398,0.30053316,612.11,611.42,0.8052745]
[1743547658597,0.30053316,612.11,611.43,0.8052745]
[1743547658798,0.30053316,612.11,611.44,0.8052745]
[1743547658997,0.30053316,612.11,611.45,0.8052745]
[1743547659193,0.30053316,612.13,611.46,0.8052745]
[1743547659393,0.28448921,612.1,611.47,0.8052745]
[1743547659597,0.30053316,612.09,611.48,0.8052745]
[1743547659797,0.30053316,612.09,611.49,0.8052745]
[1743547659999,0.30053316,612.09,611.5,0.8052745]
[1743547660196,0.30053316,612.09,611.51,0.8052745]
[1743547660397,0.30053316,612.09,611.52,0.8052745]
[1743547660697,0.30053316,612.09,611.53,0.8052745]
[1743547660897,0.30053316,612.09,611.54,0.8052745]
[1743547661091,0.30053316,612.09,611.55,0.8052745]
[1743547661291,0.30053316,612.09,611.56,0.8052745]
[1743547661494,0.30053316,612.09,611.57,0.80603643]
[1743547661794,0.30053316,612.09,611.16,0.32724654]
[1743547661795,0.30053316,612.09,611.58,0.80603643]
[1743547661996,0.30053316,612.09,611.59,0.80603643]
[1743547662297,0.30053316,612.08,611.6,0.80603643]
[1743547662493,0.30053316,612.08,611.61,0.80603643]
[1743547662697,0.30053316,612.07,611.62,0.80603643]
[1743547662896,0.30053316,612.13,611.63,0.80603643]
[1743547663094,0.30053316,612.12,611.64,0.80603643]
[1743547663298,0.30053316,612.11,611.65,0.80603643]
[1743547663493,0.28445084,612.12,611.66,0.805986]
[1743547663698,0.30053316,612.11,611.67,0.805986]
[1743547664001,0.30053316,612.11,611.4,1.20745427]
[1743547664002,0.30053316,612.11,611.68,0.805986]
[1743547664299,0.30053316,612.11,611.69,0.805986]
[1743547664502,0.30053316,612.11,611.7,0.805986]
[1743547664805,0.30053316,612.11,611.71,0.79463924]
[1743547665000,0.30053316,612.11,611.49,1.20745427]
[1743547665404,0.28444386,612.1,611.49,1.20745427]
[1743547665796,0.30053316,612.09,611.49,1.20745427]
[1743547667200,0.30053316,612.09,611.16,0.32724654]
[1743547667201,0.30053316,612.09,611.51,1.20745427]
[1743547668300,0.30053316,612.08,611.51,1.20745427]
[1743547668502,0.28446479,612.08,611.51,1.20745427]
[1743547668701,0.30053316,612.07,611.51,1.20745427]
[1743547669095,0.30053316,612.07,611.53,1.20745427]
[1743547671202,0.627,612.14,611.53,1.20745427]
[1743547671203,0.30053316,612.13,611.53,1.20745427]
[1743547671503,0.28446944,612.06,611.53,1.20745427]
[1743547671699,0.30053316,612.05,611.53,1.20745427]
[1743547672105,0.30053316,612.05,611.58,1.20745427]
[1743547674002,0.30053316,612.05,611.6,1.20745427]
[1743547674502,0.30053316,612.04,611.6,1.20745427]
[1743547674706,0.28446363,612.05,611.6,1.20745427]
[1743547674907,0.30053316,612.04,611.6,1.20745427]
[1743547675709,0.627,612.14,611.6,1.20745427]
[1743547675908,0.91144386,612.14,611.59,1.20745427]
[1743547676606,0.91144386,612.14,611.6,0.8070734]
[1743547676802,0.91144386,612.14,611.61,0.8070734]
[1743547677009,0.91144386,612.14,611.62,0.8070734]
[1743547677210,0.627,612.14,611.63,0.8070734]
[1743547677410,0.556,612.13,611.64,0.8070734]
[1743547677610,0.556,612.13,611.65,0.8070734]
[1743547677909,0.556,612.13,611.66,0.8070734]
[1743547678112,0.556,612.13,611.67,0.80734593]
[1743547678413,0.556,612.13,611.68,0.80734593]
[1743547678613,0.556,612.13,611.69,0.80734593]
[1743547678811,0.556,612.13,611.7,0.80734593]
[1743547679011,0.556,612.13,611.71,0.80734593]
[1743547679213,0.556,612.13,611.72,0.80734593]
[1743547679413,0.30043176,612.12,611.73,0.80734593]
[1743547679606,0.30043176,612.12,611.74,0.80734593]
[1743547679809,0.30043176,612.12,611.75,0.80734593]
[1743547680014,0.30043176,612.12,611.76,0.80734593]
[1743547680313,0.30043176,612.12,611.5,1.20745427]
[1743547680314,0.84041945,612.13,611.77,0.80734593]
[1743547680516,0.30043842,612.12,611.78,0.80734593]
[1743547680709,0.30043842,612.12,611.79,0.80734593]
[1743547680913,0.30043842,612.12,611.8,0.80734593]
[1743547681215,0.30043842,612.12,611.81,0.80734593]
[1743547681414,0.30043813,612.11,611.49,1.20745427]
[1743547681716,0.84041945,612.13,611.5,0.8087567]
[1743547681917,0.30043813,612.12,611.51,0.8087567]
[1743547682112,0.30043813,612.12,611.52,0.8087567]
[1743547682312,0.30043813,612.12,611.53,0.8087567]
[1743547682511,0.30043813,612.12,611.54,0.8087567]
[1743547682713,0.30043813,612.12,611.55,0.8087567]
[1743547682913,0.84041945,612.13,611.56,0.8087567]
[1743547683113,0.30043784,612.12,611.57,0.8087567]
[1743547683317,0.30043784,612.12,611.58,0.8087567]
[1743547683516,0.28444968,612.11,611.59,0.80921377]
[1743547683710,0.27761545,612.11,611.6,0.80921377]
[1743547683910,0.27761545,612.11,611.61,0.80921377]
[1743547684113,0.27761545,612.11,611.62,0.80921377]
[1743547684416,0.27761545,612.11,611.49,1.20745427]
[1743547684417,0.27761545,612.11,611.63,0.80921377]
[1743547684617,0.30045637,612.1,611.64,0.80921377]
[1743547684915,0.30045637,612.1,611.65,0.80921377]
[1743547685113,0.30045637,612.1,611.66,0.80921377]
[1743547685312,0.30045637,612.1,611.67,0.80921377]
[1743547685513,0.30045637,612.1,611.49,1.20745427]
[1743547685514,0.30045637,612.1,611.68,0.80944186]
[1743547685812,0.30045637,612.1,611.69,0.80944186]
[1743547686011,0.30045637,612.1,611.7,0.80944186]
[1743547686211,0.556,612.13,611.48,1.20745427]
[1743547686212,0.30045637,612.12,611.48,1.20745427]
[1743547686415,0.28445665,612.09,611.49,0.80955185]
[1743547686611,0.30045637,612.08,611.5,0.80955185]
[1743547686812,0.30045637,612.08,611.51,0.80955185]
[1743547687118,0.30045637,612.08,611.52,0.80955185]
[1743547687317,0.30045637,612.08,611.53,0.80955185]
[1743547687511,0.30045637,612.08,611.54,0.8097097]
[1743547687718,0.30045637,612.08,611.55,0.8097097]
[1743547687919,0.30045637,612.08,611.56,0.8097097]
[1743547688119,0.30045637,612.08,611.57,0.8097097]
[1743547688320,0.30045637,612.08,611.58,0.8097097]
[1743547688518,0.30045637,612.08,611.59,0.8097097]
[1743547688714,0.30045637,612.08,611.6,0.8097097]
[1743547688915,0.30045637,612.08,611.48,1.20745427]
[1743547688916,0.30045637,612.08,611.61,0.8097097]
[1743547689121,0.30045637,612.08,611.27,1.21620832]
[1743547689122,0.30045637,612.08,611.62,0.8097097]
[1743547689320,0.30045637,612.12,611.63,0.8097097]
[1743547689621,0.28447758,612.07,611.64,0.8097097]
[1743547689814,0.30045637,612.06,611.65,0.8097097]
[1743547690015,0.30045637,612.06,611.66,0.8097097]
[1743547690219,0.30045637,612.06,611.67,0.8097097]
[1743547690419,0.30045637,612.06,611.68,0.8097097]
[1743547690624,0.30045637,612.06,611.69,0.8097097]
[1743547690922,0.30045637,612.06,611.7,0.8097097]
[1743547691122,0.30045637,612.06,611.71,0.8097097]
[1743547691332,0.30045637,612.06,611.72,0.8097097]
[1743547691525,0.30045637,612.06,611.73,0.8097097]
[1743547691729,0.30045637,612.06,611.74,0.8097097]
[1743547691926,0.30045637,612.06,611.75,0.8097097]
[1743547692130,0.30045637,612.06,611.76,0.8097097]
[1743547692331,0.28446479,612.05,611.77,0.8097097]
[1743547692532,0.28446479,612.05,611.78,0.8097097]
[1743547692729,0.28446479,612.05,611.46,1.20745427]
[1743547692730,0.30048097,612.04,611.79,0.8097097]
[1743547693035,0.30048097,612.04,611.8,0.8097097]
[1743547693233,0.30048097,612.04,611.81,0.8097097]
[1743547693535,0.30048097,612.04,611.48,1.20745427]
[1743547693536,0.30048097,612.04,611.82,0.8097097]
[1743547693736,0.30048097,612.04,611.83,0.8097097]
[1743547693938,0.28446479,612.05,611.84,0.8097097]
[1743547694133,0.28446479,612.05,611.85,0.8097097]
[1743547694334,0.28446479,612.05,611.86,0.8097097]
[1743547694534,0.28446479,612.05,611.87,0.8097097]
[1743547694734,0.28446479,612.05,611.88,0.8097097]
[1743547694938,0.28446479,612.05,611.89,0.8097097]
[1743547695137,0.556,612.13,611.9,0.8097097]
[1743547695337,0.28444154,612.04,611.91,0.8097097]
[1743547695535,0.28444154,612.04,611.92,0.8097097]
[1743547695734,0.556,612.13,611.93,0.8097097]
[1743547695933,0.8403997,612.13,611.94,0.8097097]
[1743547696134,0.8403997,612.13,611.95,0.8097097]
[1743547696335,0.8403997,612.13,611.46,1.20745427]
[1743547696336,0.8403997,612.13,611.96,0.8097097]
[1743547696536,0.8403997,612.13,611.97,0.8097097]
[1743547696735,0.8403997,612.13,611.98,0.8097097]
[1743547696939,0.8403997,612.13,611.99,0.8097097]
[1743547697240,0.8403997,612.13,612.0,0.8097097]
[1743547697439,0.8403997,612.13,612.01,0.8097097]
[1743547697639,0.8403997,612.13,612.02,0.8097097]
[1743547697840,0.8403997,612.13,612.03,0.8097097]
[1743547698043,0.556,612.13,612.04,0.8097097]
[1743547698241,0.556,612.13,612.05,0.8097097]
[1743547698441,0.84038691,612.13,612.06,0.8097097]
[1743547698642,0.84038691,612.13,612.07,0.8097097]
[1743547698841,0.556,612.13,612.08,0.8097097]
[1743547699041,0.556,612.13,612.09,0.8097097]
[1743547699337,0.556,612.13,612.1,0.8097097]
[1743547699542,0.556,612.13,612.11,0.8097097]
[1743547699742,0.556,612.13,612.12,0.8097097]
[1743547702545,0.679,612.59,612.12,0.8097097]
[1743547702842,0.28432418,612.31,612.13,0.8097097]
[1743547703045,0.30034882,612.3,612.14,0.8097097]
[1743547703245,0.58463003,612.58,612.15,0.8097097]
[1743547703441,0.30034882,612.57,612.16,0.8097097]
[1743547703639,0.30034882,612.57,612.17,0.8097097]
[1743547703839,0.30034882,612.57,612.18,0.8097097]
[1743547704139,0.30034882,612.57,612.19,0.8097097]
[1743547704343,0.28425915,612.56,612.2,0.8097097]
[1743547704544,0.30034882,612.55,612.21,0.8097097]
[1743547704845,0.30034882,612.55,611.49,1.20745427]
[1743547704846,0.30034882,612.55,612.22,0.8097097]
[1743547705046,0.30034882,612.55,612.23,0.8097097]
[1743547705347,0.30034882,612.55,612.24,0.8097097]
[1743547705545,0.30034882,612.55,612.25,0.8097097]
[1743547705746,0.30034882,612.55,612.26,0.8097097]
[1743547706047,0.30034882,612.55,612.27,0.8097097]
[1743547706246,0.30034882,612.55,612.28,0.8097097]
[1743547706446,0.30034882,612.55,612.29,0.8097097]
[1743547706648,0.30034882,612.55,612.3,0.8097097]
[1743547706842,0.30034882,612.55,612.31,0.8097097]
[1743547707044,0.30034882,612.55,612.32,0.8097097]
[1743547707245,0.30034882,612.54,612.33,0.8097097]
[1743547707444,0.30034882,612.53,612.34,0.8097097]
[1743547707646,0.30034882,612.53,612.35,0.8097097]
[1743547707844,0.30034882,612.53,612.36,0.8097097]
[1743547708042,0.30034882,612.53,611.71,1.20745427]
[1743547708242,0.30034882,612.53,611.72,0.8065178]
[1743547708548,0.30034882,612.53,611.73,0.8065178]
[1743547708849,0.30034882,612.53,611.74,0.8065178]
[1743547709048,0.30034882,612.53,611.75,0.8065178]
[1743547709349,0.30034882,612.53,611.76,0.8065178]
[1743547709650,0.30034882,612.53,611.77,0.8065178]
[1743547709844,0.30034882,612.53,611.78,0.8065178]
[1743547710049,0.30034882,612.53,611.79,0.8065178]
[1743547710245,0.30034882,612.53,611.8,0.8065178]
[1743547710450,0.30034882,612.53,611.81,0.8065178]
[1743547710749,0.30034882,612.53,611.82,0.8065178]
[1743547710945,0.30034882,612.53,611.83,0.8065178]
[1743547711249,0.30034882,612.53,611.84,0.8065178]
[1743547711447,0.30034882,612.53,611.85,0.8065178]
[1743547711649,0.30034882,612.53,611.86,0.8065178]
[1743547711848,0.30034882,612.53,611.87,0.8065178]
[1743547712049,0.30034882,612.53,611.88,0.8065178]
[1743547712250,0.30034882,612.53,611.89,0.8065178]
[1743547712447,0.30034882,612.53,611.9,0.8065178]
[1743547712646,0.30034882,612.53,611.58,1.20745427]
[1743547712647,0.30034882,612.53,611.91,0.8065178]
[1743547712847,0.30034882,612.53,611.92,0.8065178]
[1743547713150,0.30034882,612.53,611.93,0.8065178]
[1743547713350,0.30034882,612.58,611.94,0.8065178]
[1743547713546,0.28430095,612.52,611.95,0.8065178]
[1743547713751,0.30034882,612.51,611.96,0.8065178]
[1743547713952,0.30034882,612.51,611.97,0.8065178]
[1743547714151,0.30034882,612.51,611.98,0.8065178]
[1743547714453,0.30034882,612.51,611.99,0.8065178]
[1743547714650,0.30034882,612.51,612.0,0.8065178]
[1743547714849,0.30034882,612.51,612.01,0.8065178]
[1743547715051,0.28430095,612.52,612.02,0.8065178]
[1743547715251,0.28430095,612.52,611.55,0.32703785]
[1743547715252,0.30028967,612.51,612.03,0.8065178]
[1743547715552,0.30028967,612.51,611.55,0.32703785]
[1743547715553,0.30028777,612.5,612.04,0.8065178]
[1743547715750,0.30028777,612.49,612.05,0.8065178]
[1743547715947,0.30028777,612.51,612.06,0.8065178]
[1743547716152,0.30028777,612.5,612.07,0.8065178]
[1743547716347,0.30028777,612.51,612.08,0.8065178]
[1743547716551,0.28430095,612.52,612.09,0.8065178]
[1743547716552,0.30028777,612.5,612.09,0.8065178]
[1743547716749,0.30028777,612.51,612.1,0.8065178]
[1743547716948,0.30028777,612.5,612.11,0.8065178]
[1743547717146,0.30028777,612.49,612.12,0.8065178]
[1743547717350,0.30028777,612.48,612.13,0.8065178]